[Event "Early-Titled-Tuesday-Blitz-October-24-2023"]
[Site "Chess.com"]
[Date "2023.10.24"]
[Round "3"]
[White "SashaKuzhilniy"]
[Black "GMSrinath"]
[Result "1/2-1/2"]
[WhiteElo "2648"]
[BlackElo "2833"]
[TimeControl "180+1"]
[EndTime "8:28:38 PDT"]
[Termination "Game drawn by agreement"]

1. b3 {[%clk 0:03:00.9]} 1... e5 {[%clk 0:02:58.3]} 2. Bb2 {[%clk 0:03:00.8]}
2... Nc6 {[%clk 0:02:58.7]} 3. e3 {[%clk 0:03:01.2]} 3... Nf6 {[%clk 0:02:59.3]}
4. Bb5 {[%clk 0:03:00.8]} 4... Bd6 {[%clk 0:02:58.6]} 5. Ne2 {[%clk 0:02:59.9]}
5... O-O {[%clk 0:02:58.3]} 6. O-O {[%clk 0:02:59]} 6... Re8 {[%clk 0:02:58.7]}
7. d3 {[%clk 0:02:57.4]} 7... Ne7 {[%clk 0:02:57.8]} 8. d4 {[%clk 0:02:37.5]}
8... e4 {[%clk 0:02:57]} 9. Ng3 {[%clk 0:02:37.2]} 9... c6 {[%clk 0:02:53.4]}
10. Be2 {[%clk 0:02:37.2]} 10... Bc7 {[%clk 0:02:54]} 11. d5 {[%clk 0:01:57.8]}
11... Nexd5 {[%clk 0:02:45.6]} 12. c4 {[%clk 0:01:57.9]} 12... Nb6 {[%clk
0:02:40.5]} 13. c5 {[%clk 0:01:47.4]} 13... Nbd5 {[%clk 0:02:40]} 14. Nf5 {[%clk
0:01:45.2]} 14... d6 {[%clk 0:02:30.7]} 15. Nxd6 {[%clk 0:01:43.8]} 15... Bxd6
{[%clk 0:02:30.2]} 16. cxd6 {[%clk 0:01:44.7]} 16... Qxd6 {[%clk 0:02:31]} 17.
Nd2 {[%clk 0:01:40.9]} 17... Bf5 {[%clk 0:02:24]} 18. Nc4 {[%clk 0:01:37.4]}
18... Qe7 {[%clk 0:02:24.5]} 19. Qe1 {[%clk 0:01:24.9]} 19... Rad8 {[%clk
0:02:19.3]} 20. Rd1 {[%clk 0:01:24.3]} 20... b6 {[%clk 0:02:14.8]} 21. Ne5
{[%clk 0:01:17.9]} 21... Qe6 {[%clk 0:02:10.2]} 22. Rd2 {[%clk 0:01:11.1]} 22...
Ng4 {[%clk 0:01:52.7]} 23. Nxg4 {[%clk 0:01:03.5]} 23... Bxg4 {[%clk 0:01:53.6]}
24. Bc4 {[%clk 0:01:04.1]} 24... Qg6 {[%clk 0:01:48.9]} 25. Kh1 {[%clk
0:01:01.9]} 25... h5 {[%clk 0:01:44]} 26. Bxd5 {[%clk 0:00:52.9]} 26... Rxd5
{[%clk 0:01:39.9]} 27. Rxd5 {[%clk 0:00:52.8]} 27... cxd5 {[%clk 0:01:40.8]} 28.
Qd2 {[%clk 0:00:53.2]} 28... Be6 {[%clk 0:01:40.6]} 29. Rc1 {[%clk 0:00:48.8]}
29... h4 {[%clk 0:01:39.6]} 30. h3 {[%clk 0:00:48.8]} 30... Qh5 {[%clk 0:01:30]}
31. Qd4 {[%clk 0:00:46.6]} 31... f6 {[%clk 0:01:29.8]} 32. Rc7 {[%clk
0:00:46.1]} 32... Rf8 {[%clk 0:01:27.3]} 33. Qd2 {[%clk 0:00:34.3]} 33... Rf7
{[%clk 0:01:22.2]} 34. Rxf7 {[%clk 0:00:32.6]} 34... Kxf7 {[%clk 0:01:17.5]} 35.
Qc2 {[%clk 0:00:31.4]} 35... Kg8 {[%clk 0:01:10.4]} 36. Bd4 {[%clk 0:00:26.9]}
36... Qf7 {[%clk 0:00:59.3]} 37. Qc6 {[%clk 0:00:24.1]} 37... g5 {[%clk
0:00:59.5]} 38. Qd6 {[%clk 0:00:22.4]} 38... Kg7 {[%clk 0:00:55.5]} 39. a4
{[%clk 0:00:19.9]} 39... Kg6 {[%clk 0:00:54.4]} 40. b4 {[%clk 0:00:19.6]} 40...
g4 {[%clk 0:00:24.9]} 41. hxg4 {[%clk 0:00:19.2]} 41... Bxg4 {[%clk 0:00:25.8]}
42. Qf4 {[%clk 0:00:18.3]} 42... f5 {[%clk 0:00:26.3]} 43. Qe5 {[%clk
0:00:17.3]} 43... h3 {[%clk 0:00:23.6]} 44. g3 {[%clk 0:00:17.1]} 44... h2
{[%clk 0:00:21.9]} 45. Kxh2 {[%clk 0:00:14.7]} 45... Kh5 {[%clk 0:00:22.4]} 46.
Qh8+ {[%clk 0:00:14]} 46... Kg6 {[%clk 0:00:21.7]} 47. Qd8 {[%clk 0:00:14.2]}
47... Bf3 {[%clk 0:00:15.3]} 48. Kg1 {[%clk 0:00:12.4]} 48... Qe6 {[%clk
0:00:13.6]} 49. a5 {[%clk 0:00:09.4]} 49... bxa5 {[%clk 0:00:13.1]} 50. bxa5
{[%clk 0:00:10.3]} 50... a6 {[%clk 0:00:11.6]} 51. Qb6 {[%clk 0:00:09.9]} 51...
Kf7 {[%clk 0:00:11.2]} 52. Qxe6+ {[%clk 0:00:09.5]} 52... Kxe6 {[%clk
0:00:12.1]} 53. Kh2 {[%clk 0:00:09.6]} 53... Bg4 {[%clk 0:00:10.2]} 54. Kg2
{[%clk 0:00:08.3]} 54... Kd6 {[%clk 0:00:10.8]} 55. Kf1 {[%clk 0:00:08.4]} 55...
Kc6 {[%clk 0:00:11.5]} 56. Bb6 {[%clk 0:00:08.7]} 56... Kb5 {[%clk 0:00:10.1]}
57. Ke1 {[%clk 0:00:09.2]} 57... Kc4 {[%clk 0:00:10.6]} 58. Kd2 {[%clk
0:00:09.8]} 58... Bf3 {[%clk 0:00:11.2]} 59. Bd8 {[%clk 0:00:10]} 59... Kb4
{[%clk 0:00:11.8]} 60. Bb6 {[%clk 0:00:10.4]} 60... Kb3 {[%clk 0:00:12.4]} 61.
Bd8 {[%clk 0:00:11]} 61... Ka4 {[%clk 0:00:13.1]} 62. Bb6 {[%clk 0:00:11.4]}
62... Kb5 {[%clk 0:00:14]} 63. Bd8 {[%clk 0:00:12]} 63... Kc6 {[%clk 0:00:14.9]}
64. Bb6 {[%clk 0:00:12.5]} 64... Kd7 {[%clk 0:00:15.8]} 65. Kc3 {[%clk
0:00:11.7]} 65... Kc6 {[%clk 0:00:14]} 66. Kd4 {[%clk 0:00:11.3]} 66... Bg4
{[%clk 0:00:14.3]} 1/2-1/2

[Event "Early-Titled-Tuesday-Blitz-October-24-2023"]
[Site "Chess.com"]
[Date "2023.10.24"]
[Round "3"]
[White "DefiantChair"]
[Black "Nyzhnyk_Illia"]
[Result "0-1"]
[WhiteElo "2647"]
[BlackElo "2852"]
[TimeControl "180+1"]
[EndTime "8:28:41 PDT"]
[Termination "Nyzhnyk_Illia won by resignation"]

1. e4 {[%clk 0:03:00.9]} 1... c6 {[%clk 0:02:56]} 2. d4 {[%clk 0:03:00.7]} 2...
d5 {[%clk 0:02:56.7]} 3. e5 {[%clk 0:03:01.2]} 3... Bf5 {[%clk 0:02:56.8]} 4.
Nf3 {[%clk 0:03:01.9]} 4... e6 {[%clk 0:02:57.2]} 5. Be2 {[%clk 0:03:02.1]} 5...
Ne7 {[%clk 0:02:56.8]} 6. Nbd2 {[%clk 0:03:02.1]} 6... Nd7 {[%clk 0:02:56]} 7.
O-O {[%clk 0:03:01.7]} 7... c5 {[%clk 0:02:56.3]} 8. c4 {[%clk 0:02:51.1]} 8...
dxc4 {[%clk 0:02:48.1]} 9. Nxc4 {[%clk 0:02:48.4]} 9... Nd5 {[%clk 0:02:48.7]}
10. Bg5 {[%clk 0:02:43.5]} 10... Qc7 {[%clk 0:02:42.9]} 11. Rc1 {[%clk
0:02:41.2]} 11... h6 {[%clk 0:02:43.2]} 12. Be3 {[%clk 0:02:22.1]} 12... Qd8
{[%clk 0:02:20.9]} 13. Nd6+ {[%clk 0:01:51.9]} 13... Bxd6 {[%clk 0:02:09.1]} 14.
exd6 {[%clk 0:01:52.8]} 14... cxd4 {[%clk 0:02:03.3]} 15. Bxd4 {[%clk
0:01:47.6]} 15... O-O {[%clk 0:02:03.2]} 16. Qb3 {[%clk 0:01:33.4]} 16... N7b6
{[%clk 0:02:00.5]} 17. a4 {[%clk 0:01:31.7]} 17... Nc8 {[%clk 0:01:55.8]} 18.
Qxb7 {[%clk 0:01:21.1]} 18... Nxd6 {[%clk 0:01:55.9]} 19. Qb3 {[%clk 0:01:20.3]}
19... Qe7 {[%clk 0:01:48.5]} 20. Bc5 {[%clk 0:01:19.9]} 20... Rfd8 {[%clk
0:01:17.2]} 21. Nd4 {[%clk 0:01:18.9]} 21... Qb7 {[%clk 0:01:12.6]} 22. Qf3
{[%clk 0:00:52]} 22... Be4 {[%clk 0:01:07.2]} 23. Qa3 {[%clk 0:00:51.6]} 23...
Nf5 {[%clk 0:00:48.6]} 24. Nxf5 {[%clk 0:00:51.8]} 24... Bxf5 {[%clk 0:00:46.1]}
25. Bf3 {[%clk 0:00:52.2]} 25... a5 {[%clk 0:00:43.1]} 26. Rfd1 {[%clk
0:00:49.5]} 26... Rab8 {[%clk 0:00:41.1]} 27. Bd4 {[%clk 0:00:49.6]} 27... Qb4
{[%clk 0:00:34.1]} 28. Qa1 {[%clk 0:00:41.6]} 28... Rbc8 {[%clk 0:00:18.5]} 29.
Be5 {[%clk 0:00:33.6]} 29... Rxc1 {[%clk 0:00:18.1]} 30. Rxc1 {[%clk 0:00:34.5]}
30... Nf4 {[%clk 0:00:16.9]} 31. Rd1 {[%clk 0:00:24.9]} 31... Rxd1+ {[%clk
0:00:16.1]} 32. Qxd1 {[%clk 0:00:25.8]} 32... Nd3 {[%clk 0:00:15.9]} 33. Bc3
{[%clk 0:00:24.9]} 33... Qc5 {[%clk 0:00:16.4]} 34. Qd2 {[%clk 0:00:20.9]} 34...
Qc4 {[%clk 0:00:14.6]} 35. h3 {[%clk 0:00:19]} 35... Qxa4 {[%clk 0:00:14.5]} 36.
Be2 {[%clk 0:00:18]} 36... Nf4 {[%clk 0:00:13.1]} 37. Bf1 {[%clk 0:00:17.1]}
37... Nd5 {[%clk 0:00:12.3]} 38. Bxa5 {[%clk 0:00:17]} 38... Qa1 {[%clk
0:00:11.4]} 39. Bc3 {[%clk 0:00:16.6]} 39... Qb1 {[%clk 0:00:11.3]} 40. g4
{[%clk 0:00:14.2]} 40... Be4 {[%clk 0:00:11.2]} 41. f4 {[%clk 0:00:13]} 41...
Nxc3 {[%clk 0:00:07.3]} 42. bxc3 {[%clk 0:00:12.9]} 42... Bd5 {[%clk 0:00:08]}
43. Kf2 {[%clk 0:00:12.4]} 43... Qe4 {[%clk 0:00:08.3]} 44. Qe3 {[%clk
0:00:12.7]} 44... Qh1 {[%clk 0:00:08.5]} 45. c4 {[%clk 0:00:12.4]} 45... Qh2+
{[%clk 0:00:08.6]} 46. Ke1 {[%clk 0:00:11.7]} 46... Bc6 {[%clk 0:00:08.6]} 47.
Qf2 {[%clk 0:00:12.1]} 47... Qh1 {[%clk 0:00:09]} 48. Qe3 {[%clk 0:00:12.2]}
48... Bb7 {[%clk 0:00:09.3]} 49. Kf2 {[%clk 0:00:11.3]} 49... Qh2+ {[%clk
0:00:09.3]} 50. Ke1 {[%clk 0:00:11.4]} 50... Qc2 {[%clk 0:00:10]} 51. Qd3 {[%clk
0:00:10.8]} 51... Qc1+ {[%clk 0:00:10.6]} 52. Ke2 {[%clk 0:00:09.6]} 52... Qxf4
{[%clk 0:00:11.3]} 53. Qd8+ {[%clk 0:00:09.7]} 53... Kh7 {[%clk 0:00:11.5]} 54.
Qd3+ {[%clk 0:00:10.1]} 54... Be4 {[%clk 0:00:11.8]} 55. Qe3 {[%clk 0:00:10.4]}
55... Qh2+ {[%clk 0:00:12.5]} 56. Qf2 {[%clk 0:00:09.4]} 56... Bd3+ {[%clk
0:00:12]} 57. Ke3 {[%clk 0:00:09.5]} 57... Qxf2+ {[%clk 0:00:12.6]} 58. Kxf2
{[%clk 0:00:10.4]} 58... Bxf1 {[%clk 0:00:13.1]} 59. Kxf1 {[%clk 0:00:11.3]}
59... Kg8 {[%clk 0:00:13.8]} 60. c5 {[%clk 0:00:11.8]} 60... Kf8 {[%clk
0:00:14.5]} 61. Kf2 {[%clk 0:00:09.7]} 61... Ke7 {[%clk 0:00:15.4]} 62. Ke3
{[%clk 0:00:10.6]} 62... Kd7 {[%clk 0:00:15.8]} 63. Kd4 {[%clk 0:00:11.2]} 63...
f6 {[%clk 0:00:16.3]} 64. h4 {[%clk 0:00:10.6]} 64... g6 {[%clk 0:00:17]} 65.
Ke4 {[%clk 0:00:09.3]} 65... Kc6 {[%clk 0:00:17.3]} 66. Kd4 {[%clk 0:00:09.9]}
66... e5+ {[%clk 0:00:18]} 67. Kc4 {[%clk 0:00:10.5]} 67... h5 {[%clk
0:00:18.5]} 68. g5 {[%clk 0:00:09.2]} 68... f5 {[%clk 0:00:19]} 69. Kb4 {[%clk
0:00:09]} 69... f4 {[%clk 0:00:19.4]} 70. Kc4 {[%clk 0:00:09.7]} 70... f3 {[%clk
0:00:20]} 71. Kd3 {[%clk 0:00:10.1]} 71... Kxc5 {[%clk 0:00:20.6]} 72. Ke3
{[%clk 0:00:11]} 72... e4 {[%clk 0:00:21.2]} 0-1

[Event "Early-Titled-Tuesday-Blitz-October-24-2023"]
[Site "Chess.com"]
[Date "2023.10.24"]
[Round "3"]
[White "Estrategia_vs_Tactica"]
[Black "Legendinunknown"]
[Result "0-1"]
[WhiteElo "2275"]
[BlackElo "2796"]
[TimeControl "180+1"]
[EndTime "8:28:41 PDT"]
[Termination "Legendinunknown won on time"]

1. d4 {[%clk 0:02:59.6]} 1... Nf6 {[%clk 0:02:59.3]} 2. c4 {[%clk 0:02:58.4]}
2... e6 {[%clk 0:02:59.3]} 3. Nf3 {[%clk 0:02:57.6]} 3... d5 {[%clk 0:02:58.8]}
4. g3 {[%clk 0:02:57.8]} 4... Bb4+ {[%clk 0:02:55.1]} 5. Bd2 {[%clk 0:02:57.5]}
5... Be7 {[%clk 0:02:55.1]} 6. Bg2 {[%clk 0:02:57.9]} 6... O-O {[%clk
0:02:55.1]} 7. O-O {[%clk 0:02:55.7]} 7... c6 {[%clk 0:02:55.5]} 8. Nc3 {[%clk
0:02:51.8]} 8... dxc4 {[%clk 0:02:48.1]} 9. Bf4 {[%clk 0:02:38.1]} 9... b5
{[%clk 0:02:46.4]} 10. Ne5 {[%clk 0:02:37]} 10... Nd5 {[%clk 0:02:44.1]} 11. a4
{[%clk 0:02:26]} 11... b4 {[%clk 0:02:41.5]} 12. Ne4 {[%clk 0:02:21.4]} 12...
Ba6 {[%clk 0:02:37.5]} 13. Rc1 {[%clk 0:02:18.1]} 13... c3 {[%clk 0:02:31.1]}
14. bxc3 {[%clk 0:02:16.6]} 14... f5 {[%clk 0:02:30.5]} 15. Nc5 {[%clk
0:02:05.7]} 15... Bxc5 {[%clk 0:02:27.5]} 16. Bxd5 {[%clk 0:01:43]} 16... exd5
{[%clk 0:01:52.4]} 17. dxc5 {[%clk 0:01:40.8]} 17... bxc3 {[%clk 0:01:52.7]} 18.
Rxc3 {[%clk 0:01:33.8]} 18... Qf6 {[%clk 0:01:51.9]} 19. h4 {[%clk 0:01:31.7]}
19... Re8 {[%clk 0:01:48]} 20. Re3 {[%clk 0:01:22.8]} 20... Bc8 {[%clk
0:01:36.1]} 21. Qd4 {[%clk 0:00:54.5]} 21... h6 {[%clk 0:01:07.7]} 22. Nf3
{[%clk 0:00:28.4]} 22... Qf7 {[%clk 0:00:36.1]} 23. Rxe8+ {[%clk 0:00:24.2]}
23... Qxe8 {[%clk 0:00:37]} 24. Rb1 {[%clk 0:00:20.7]} 24... Nd7 {[%clk
0:00:31.2]} 25. Ne5 {[%clk 0:00:20.6]} 25... Nf6 {[%clk 0:00:26]} 26. f3 {[%clk
0:00:17.8]} 26... Ba6 {[%clk 0:00:25.1]} 27. Kf2 {[%clk 0:00:16.3]} 27... Qe6
{[%clk 0:00:21.8]} 28. Nd3 {[%clk 0:00:16.1]} 28... Re8 {[%clk 0:00:21.7]} 29.
Re1 {[%clk 0:00:16.1]} 29... Nh5 {[%clk 0:00:19.5]} 30. Be5 {[%clk 0:00:16.1]}
30... Kh7 {[%clk 0:00:16.8]} 31. f4 {[%clk 0:00:16.2]} 31... Qf7 {[%clk
0:00:12.3]} 32. Rg1 {[%clk 0:00:16.4]} 32... Bc4 {[%clk 0:00:11.9]} 33. Nb4
{[%clk 0:00:16.6]} 33... Re6 {[%clk 0:00:10]} 34. Nc2 {[%clk 0:00:16.7]} 34...
Nf6 {[%clk 0:00:09.8]} 35. Ke1 {[%clk 0:00:15.3]} 35... Ne4 {[%clk 0:00:09.7]}
36. Ne3 {[%clk 0:00:15.4]} 36... Ba6 {[%clk 0:00:10.1]} 37. g4 {[%clk
0:00:14.8]} 37... fxg4 {[%clk 0:00:08]} 38. f5 {[%clk 0:00:15.4]} 38... Re7
{[%clk 0:00:07.3]} 39. Rxg4 {[%clk 0:00:16.1]} 39... Qh5 {[%clk 0:00:07.6]} 40.
Rxg7+ {[%clk 0:00:13.7]} 40... Rxg7 {[%clk 0:00:07.1]} 41. Bxg7 {[%clk
0:00:14.6]} 41... Qxh4+ {[%clk 0:00:07.6]} 42. Kd1 {[%clk 0:00:14.3]} 42... Qh1+
{[%clk 0:00:05.6]} 43. Kc2 {[%clk 0:00:14.4]} 43... Qe1 {[%clk 0:00:05.7]} 44.
Qd1 {[%clk 0:00:11.3]} 44... Qxe2+ {[%clk 0:00:05]} 45. Qxe2 {[%clk 0:00:11.4]}
45... Bxe2 {[%clk 0:00:05.9]} 46. Be5 {[%clk 0:00:11.2]} 46... Nxc5 {[%clk
0:00:05.9]} 47. Bd4 {[%clk 0:00:11]} 47... Ne4 {[%clk 0:00:05.9]} 48. Bxa7
{[%clk 0:00:11.1]} 48... h5 {[%clk 0:00:06.3]} 49. Bb8 {[%clk 0:00:09]} 49... h4
{[%clk 0:00:06.1]} 50. a5 {[%clk 0:00:06.5]} 50... Kh6 {[%clk 0:00:05.4]} 51.
Ng2 {[%clk 0:00:07]} 51... Kg5 {[%clk 0:00:04.9]} 52. Bc7 {[%clk 0:00:05.9]}
52... h3 {[%clk 0:00:05]} 53. Ne3 {[%clk 0:00:05.9]} 53... d4 {[%clk 0:00:05.4]}
54. Nc4 {[%clk 0:00:05]} 54... Kxf5 {[%clk 0:00:05.6]} 55. Nd2 {[%clk
0:00:03.4]} 55... Nxd2 {[%clk 0:00:04.9]} 56. Kxd2 {[%clk 0:00:04.3]} 56... Ba6
{[%clk 0:00:05.6]} 57. Kd1 {[%clk 0:00:03.7]} 57... Ke4 {[%clk 0:00:06.1]} 58.
Kd2 {[%clk 0:00:04.2]} 58... c5 {[%clk 0:00:06.6]} 59. Kc2 {[%clk 0:00:04.6]}
59... c4 {[%clk 0:00:07.5]} 60. Kd2 {[%clk 0:00:05.2]} 60... c3+ {[%clk
0:00:08.1]} 61. Kc1 {[%clk 0:00:05.5]} 61... Kd5 {[%clk 0:00:08.9]} 62. Bg3
{[%clk 0:00:05.1]} 62... Kc4 {[%clk 0:00:09.8]} 63. Be5 {[%clk 0:00:02.7]} 63...
d3 {[%clk 0:00:10.7]} 0-1

[Event "Early-Titled-Tuesday-Blitz-October-24-2023"]
[Site "Chess.com"]
[Date "2023.10.24"]
[Round "3"]
[White "Verony64"]
[Black "Fuzesabonyilaci"]
[Result "1/2-1/2"]
[WhiteElo "2190"]
[BlackElo "2386"]
[TimeControl "180+1"]
[EndTime "8:28:45 PDT"]
[Termination "Game drawn - insufficient material"]

1. e4 {[%clk 0:02:53.7]} 1... e6 {[%clk 0:03:00]} 2. Nc3 {[%clk 0:02:54.3]} 2...
d5 {[%clk 0:03:00]} 3. d3 {[%clk 0:02:54.6]} 3... Nf6 {[%clk 0:02:56.2]} 4. e5
{[%clk 0:02:54.6]} 4... Nfd7 {[%clk 0:02:55.6]} 5. f4 {[%clk 0:02:55.3]} 5... d4
{[%clk 0:02:56]} 6. Nce2 {[%clk 0:02:54]} 6... c5 {[%clk 0:02:56]} 7. Nf3 {[%clk
0:02:54.5]} 7... Nc6 {[%clk 0:02:56.2]} 8. g3 {[%clk 0:02:54.9]} 8... b6 {[%clk
0:02:54.8]} 9. Bg2 {[%clk 0:02:55.5]} 9... Bb7 {[%clk 0:02:55.2]} 10. O-O {[%clk
0:02:56.1]} 10... Qc7 {[%clk 0:02:55.4]} 11. g4 {[%clk 0:02:56.3]} 11... f6
{[%clk 0:02:50.6]} 12. exf6 {[%clk 0:02:33.6]} 12... gxf6 {[%clk 0:02:51.5]} 13.
Ng3 {[%clk 0:02:33.1]} 13... Rg8 {[%clk 0:02:48.2]} 14. Qe2 {[%clk 0:02:31.8]}
14... e5 {[%clk 0:02:45]} 15. Nh4 {[%clk 0:01:59.3]} 15... O-O-O {[%clk
0:02:43]} 16. f5 {[%clk 0:01:49.3]} 16... b5 {[%clk 0:02:22.3]} 17. Bd2 {[%clk
0:01:41.3]} 17... Nb6 {[%clk 0:02:20.7]} 18. Be4 {[%clk 0:01:21.5]} 18... c4
{[%clk 0:02:20.3]} 19. Qf3 {[%clk 0:01:18.8]} 19... Bb4 {[%clk 0:02:07]} 20.
Rad1 {[%clk 0:01:11]} 20... c3 {[%clk 0:02:04.3]} 21. bxc3 {[%clk 0:01:08.8]}
21... dxc3 {[%clk 0:02:03.3]} 22. Be3 {[%clk 0:01:05]} 22... Na4 {[%clk
0:01:51.3]} 23. Nh5 {[%clk 0:00:57.5]} 23... Rd6 {[%clk 0:01:44.6]} 24. Kf2
{[%clk 0:00:52.7]} 24... Bc5 {[%clk 0:01:40.8]} 25. Rg1 {[%clk 0:00:49.9]} 25...
Bxe3+ {[%clk 0:01:37.3]} 26. Qxe3 {[%clk 0:00:50.8]} 26... Nd4 {[%clk
0:01:35.1]} 27. Rc1 {[%clk 0:00:41.3]} 27... Nc5 {[%clk 0:01:34.6]} 28. Nf3
{[%clk 0:00:29.3]} 28... Nxe4+ {[%clk 0:01:29.6]} 29. dxe4 {[%clk 0:00:30.2]}
29... Nxf3 {[%clk 0:01:29.3]} 30. Kxf3 {[%clk 0:00:28.6]} 30... Rgd8 {[%clk
0:01:21.4]} 31. Rg2 {[%clk 0:00:21.2]} 31... Qc6 {[%clk 0:01:20.1]} 32. Re2
{[%clk 0:00:20.3]} 32... Rd4 {[%clk 0:01:01.9]} 33. Ng3 {[%clk 0:00:16.4]} 33...
Qc4 {[%clk 0:00:57.2]} 34. Rce1 {[%clk 0:00:14.4]} 34... Qxa2 {[%clk 0:00:56.9]}
35. Qxc3+ {[%clk 0:00:14.2]} 35... Rc4 {[%clk 0:00:54.4]} 36. Qe3 {[%clk
0:00:13.6]} 36... Qa5 {[%clk 0:00:48.7]} 37. Qh6 {[%clk 0:00:12.1]} 37... Qc7
{[%clk 0:00:41.8]} 38. Qxf6 {[%clk 0:00:09.3]} 38... a5 {[%clk 0:00:35.5]} 39.
Qe6+ {[%clk 0:00:08.9]} 39... Kb8 {[%clk 0:00:35]} 40. f6 {[%clk 0:00:09]} 40...
a4 {[%clk 0:00:34.5]} 41. f7 {[%clk 0:00:07.5]} 41... Rf8 {[%clk 0:00:26.3]} 42.
Nf5 {[%clk 0:00:07.7]} 42... Rxf7 {[%clk 0:00:23.2]} 43. Qe8+ {[%clk 0:00:07.6]}
43... Ka7 {[%clk 0:00:21.3]} 44. Qxb5 {[%clk 0:00:08.2]} 44... h5 {[%clk
0:00:16.6]} 45. h3 {[%clk 0:00:07.6]} 45... hxg4+ {[%clk 0:00:15.5]} 46. hxg4
{[%clk 0:00:08.5]} 46... Rh7 {[%clk 0:00:15.7]} 47. Ra1 {[%clk 0:00:08.5]} 47...
Ba6 {[%clk 0:00:11]} 48. Rxa4 {[%clk 0:00:06.9]} 48... Rxa4 {[%clk 0:00:10]} 49.
Qxa4 {[%clk 0:00:07.1]} 49... Qc3+ {[%clk 0:00:08.8]} 50. Re3 {[%clk 0:00:06.8]}
50... Qc5 {[%clk 0:00:06.5]} 51. Qb3 {[%clk 0:00:05.2]} 51... Rh3+ {[%clk
0:00:05.8]} 52. Kg2 {[%clk 0:00:04.6]} 52... Rxe3 {[%clk 0:00:05.9]} 53. Qxe3
{[%clk 0:00:04.2]} 53... Kb6 {[%clk 0:00:04.3]} 54. Qxc5+ {[%clk 0:00:03.9]}
54... Kxc5 {[%clk 0:00:05.2]} 55. Kg3 {[%clk 0:00:04.3]} 55... Bb7 {[%clk
0:00:04.6]} 56. Kh4 {[%clk 0:00:05.2]} 56... Bxe4 {[%clk 0:00:04.4]} 57. Kg5
{[%clk 0:00:06.1]} 57... Bxc2 {[%clk 0:00:04.5]} 58. Kf6 {[%clk 0:00:07]} 58...
Bxf5 {[%clk 0:00:03.5]} 59. g5 {[%clk 0:00:07.9]} 59... e4 {[%clk 0:00:03.2]}
60. Kxf5 {[%clk 0:00:08.1]} 60... e3 {[%clk 0:00:03.8]} 61. g6 {[%clk 0:00:09]}
61... e2 {[%clk 0:00:04.4]} 62. g7 {[%clk 0:00:09.9]} 62... e1=Q {[%clk
0:00:04.9]} 63. g8=Q {[%clk 0:00:10.5]} 63... Qf2+ {[%clk 0:00:04.1]} 64. Ke5
{[%clk 0:00:10]} 64... Qe3+ {[%clk 0:00:03.3]} 65. Kf6 {[%clk 0:00:10.2]} 65...
Qd4+ {[%clk 0:00:02.3]} 66. Kf7 {[%clk 0:00:08.8]} 66... Qd5+ {[%clk 0:00:02.3]}
67. Kg7 {[%clk 0:00:09.3]} 67... Qg5+ {[%clk 0:00:02.2]} 68. Kf7 {[%clk
0:00:09.5]} 68... Qf5+ {[%clk 0:00:02.1]} 69. Kg7 {[%clk 0:00:09.8]} 69... Kd6
{[%clk 0:00:01.8]} 70. Qf8+ {[%clk 0:00:09.2]} 70... Qxf8+ {[%clk 0:00:01.2]}
71. Kxf8 {[%clk 0:00:10.1]} 1/2-1/2